Workbook

Sheet Стр.1
A1: ИНФОРМАЦИЯ о наличии(отсутствии) технической возможности доступа к регулируемым услугам по транспортировке газа по газораспределительным сетям АО "Кузнецкмежрайгаз" за апрель 2019 г | H1: 6 | I1: 1194 | J1: 1076
A2: Точка входа в газораспределительную сеть | B2: Точка выхода из газораспределительной сети | C2: Наименование потребителя | D2: Номер группы газопотребления | E2: Объемы газа в соответствии с поступившими заявками, млн.куб.м | F2: Объемы газа в соответствии с удовлетвореннымизаявками, млн.куб.м | G2: Свободная мощность газораспределительной сети, млн.куб.м.
A3: 1 | B3: 2 | C3: 3 | D3: 4 | E3: 5 | F3: 6 | G3: 7
A5: АПРЕЛЬ
C6: Население
A7: ГРС "Никольск" | B7: ГРС "Никольск" | C7: Население | D7: 8 | E7: 0.167442 | F7: =E7 -> 0.167442 | G7: =E7-F7 -> 0
A8: ГРС "Сурск" | B8: ГРС "Сурск" | C8: Население | D8: 8 | E8: 0.018374 | F8: =E8 -> 0.018374 | G8: =E8-F8 -> 0
A9: НРС "Чаадаевка" | B9: НРС "Чаадаевка" | C9: Население | D9: 8 | E9: 0.084857 | F9: 0.084857 | G9: 0
A10: ГРС "Алеево"(ГРС-107) | B10: ГРС "Алеево"(ГРС-107) | C10: Население | D10: 8 | E10: 0.288018 | F10: 0.288018 | G10: 0
A11: ГРС "Анненково"(ГРС-98) | B11: ГРС "Анненково"(ГРС-98) | C11: Население | D11: 8 | E11: 0.637967 | F11: 0.637967 | G11: 0
A12: ГРС "Верхозим"(ГРС-53) | B12: ГРС "Верхозим"(ГРС-53) | C12: Население | D12: 8 | E12: 0.352911 | F12: 0.352911 | G12: 0
A13: ГРС "Карновар"(ГРС-47) | B13: ГРС "Карновар"(ГРС-47) | C13: Население | D13: 8 | E13: 1.032725 | F13: 1.032725 | G13: 0
A14: ГРС "Кузнецк"(ГРС-96) | B14: ГРС "Кузнецк"(ГРС-96) | C14: Население | D14: 8 | E14: 5.051079 | F14: 5.051079 | G14: 0
A15: ГРС "Пионер"(ГРС-124) | B15: ГРС "Пионер"(ГРС-124) | C15: Население | D15: 8 | E15: 0.247674 | F15: 0.247674 | G15: 0
A16: ГРС "Р-ц Камешкир"(ГРС-47) | B16: ГРС "Р-ц Камешкир"(ГРС-47) | C16: Население | D16: 8 | E16: 0.509879 | F16: 0.509879 | G16: 0
A17: ГРС " с.Большая Гусиха" | B17: ГРС " с.Большая Гусиха" | C17: Население | D17: 8 | E17: 0.0397 | F17: 0.0397 | G17: 0
A18: ГРС "с.Калинино" | B18: ГРС "с.Калинино" | C18: Население | D18: 8 | E18: 0.064304 | F18: 0.064304 | G18: 0
A19: ГРС "с.Синенькие" | B19: ГРС "с.Синенькие" | C19: Население | D19: 8 | E19: 0.007938 | F19: 0.007938 | G19: 0
A20: ГРС с-з "Борец" | B20: ГРС с-з "Борец" | C20: Население | D20: 8 | E20: 0.424699 | F20: 0.424699 | G20: 0
A21: ГРС с-з "Даниловский" | B21: ГРС с-з "Даниловский" | C21: Население | D21: 8 | E21: 0.120141 | F21: 0.120141 | G21: 0
A22: ГРС с-з "Комсомолец" | B22: ГРС с-з "Комсомолец" | C22: Население | D22: 8 | E22: 0.112957 | F22: 0.112957 | G22: 0
C23: Итого население | E23: =SUM(E7:E22) -> 9.160665 | F23: =SUM(F7:F22) -> 9.160665 | G23: =SUM(G7:G22) -> 0
C25: Промышленные и коммунально-бытовые потребители
A26: ГРС "Карновар"(ГРС-47) | B26: ГРС "Карновар"(ГРС-47) | C26: Губейдулина Румия Махмудовна | D26: 6 | E26: 0.0015 | F26: 7.5e-05 | G26: =E26-F26 -> 0.001425
A27: ГРС "Кузнецк"(ГРС-96) | B27: ГРС "Кузнецк"(ГРС-96) | C27: МУП "Водоканал" | D27: 5 | E27: 0.006 | F27: 0.006934 | G27: =E27-F27 -> -0.000934
A28: ГРС "Кузнецк"(ГРС-96) | B28: ГРС "Кузнецк"(ГРС-96) | C28: ООО Санаторий "Надежда" | D28: 5 | E28: 0.03 | F28: 0.024981 | G28: 0.005019
A29: ГРС "Р-ц Камешкир"(ГРС-47) | B29: ГРС "Р-ц Камешкир"(ГРС-47) | C29: ООО "Камешкирский комбикормовый завод" | D29: 5 | E29: 0.003 | F29: 0.002406 | G29: 0.000594
A30: ГРС "Кузнецк"(ГРС-96) | B30: ГРС "Кузнецк"(ГРС-96) | C30: МУП "Гортеплосеть" г.Кузнецк | D30: 6 | E30: 0.00849 | F30: 0.007463 | G30: 0.001027
A31: ГРС "Кузнецк"(ГРС-96) | B31: ГРС "Кузнецк"(ГРС-96) | C31: МУП "Гортеплосеть" г.Кузнецк | D31: 5 | E31: 0.03 | F31: 0.021063 | G31: 0.008937
A32: ГРС "Кузнецк"(ГРС-96) | B32: ГРС "Кузнецк"(ГРС-96) | C32: МУП "Гортеплосеть" г.Кузнецк | D32: 5 | E32: 0.00798 | F32: 0.00666 | G32: 0.00132
A33: ГРС "Кузнецк"(ГРС-96) | B33: ГРС "Кузнецк"(ГРС-96) | C33: МУП "Гортеплосеть" г.Кузнецк | D33: 5 | E33: 0.03 | F33: 0.020226 | G33: 0.009774
A34: ГРС "Кузнецк"(ГРС-96) | B34: ГРС "Кузнецк"(ГРС-96) | C34: МУП "Гортеплосеть" г.Кузнецк | D34: 5 | E34: 0.048 | F34: 0.03218 | G34: 0.01582
A35: ГРС "Кузнецк"(ГРС-96) | B35: ГРС "Кузнецк"(ГРС-96) | C35: МУП "Гортеплосеть" г.Кузнецк | D35: 5 | E35: 0.03 | F35: 0.020927 | G35: 0.009073
A36: ГРС "Анненково"(ГРС-98) | B36: ГРС "Анненково"(ГРС-98) | C36: СПК "Гигант 1" (Кузнецкий р-н) | D36: 6 | E36: 0.00258 | F36: 0.000398 | G36: 0.002182
A37: ГРС "Анненково"(ГРС-98) | B37: ГРС "Анненково"(ГРС-98) | C37: СПК "Гигант 1" (Кузнецкий р-н) | D37: 6 | E37: 0.00138 | F37: 0.001 | G37: 0.00038
A38: ГРС "Анненково"(ГРС-98) | B38: ГРС "Анненково"(ГРС-98) | C38: СПК "Гигант 1" (Кузнецкий р-н) | D38: 7 | E38: 0.0009 | F38: 6e-05 | G38: 0.00084
A39: ГРС "Анненково"(ГРС-98) | B39: ГРС "Анненково"(ГРС-98) | C39: СПК "Гигант 1" (Кузнецкий р-н) | D39: 6 | E39: 0.00249 | F39: 0.001084 | G39: 0.001406
A40: ГРС "Кузнецк"(ГРС-96) | B40: ГРС "Кузнецк"(ГРС-96) | C40: ООО "Благодатское" | D40: 5 | E40: 0.0366 | F40: 0.020973 | G40: 0.015627
A41: ГРС "Кузнецк"(ГРС-96) | B41: ГРС "Кузнецк"(ГРС-96) | C41: ООО "Благодатское" | D41: 5 | E41: 0.01569 | F41: 0.007059 | G41: 0.008631
A42: ГРС "Кузнецк"(ГРС-96) | B42: ГРС "Кузнецк"(ГРС-96) | C42: ООО "Благодатское" | D42: 7 | E42: 0.00027 | F42: 0.000473 | G42: -0.000203
A43: ГРС "Кузнецк"(ГРС-96) | B43: ГРС "Кузнецк"(ГРС-96) | C43: АО "Визит" | D43: 4 | E43: 0.15999 | F43: 0.130356 | G43: 0.029634
A44: ГРС "Кузнецк"(ГРС-96) | B44: ГРС "Кузнецк"(ГРС-96) | C44: ООО "Объединенные пензенские водочные заводы" | D44: 5 | E44: 0.05001 | F44: 0.028494 | G44: 0.021516
A45: ГРС "Карновар"(ГРС-47) | B45: ГРС "Карновар"(ГРС-47) | C45: ООО "Неверкинский Маслосырзавод" | D45: 5 | E45: 0.03 | F45: 0.013972 | G45: 0.016028
A46: ГРС "Кузнецк"(ГРС-96) | B46: ГРС "Кузнецк"(ГРС-96) | C46: ЗАО "Кузнецкая ДПМК" | D46: 5 | E46: 0.01449 | F46: 0.012992 | G46: 0.001498
A47: ГРС "Р-ц Камешкир"(ГРС-47) | B47: ГРС "Р-ц Камешкир"(ГРС-47) | C47: ООО "Камешкиравтодорсервис" | D47: 5 | E47: 0.01899 | F47: 0.00572 | G47: 0.01327
A48: ГРС "Кузнецк"(ГРС-96) | B48: ГРС "Кузнецк"(ГРС-96) | C48: ОАО "ДРСУ-5" (г.Кузнецк) | D48: 5 | E48: 0.00498 | F48: 0.001009 | G48: 0.003971
A49: ГРС "Кузнецк"(ГРС-96) | B49: ГРС "Кузнецк"(ГРС-96) | C49: ООО "Кузнецкий мебельный комбинат" | D49: 5 | E49: 0.04998 | F49: 0.024645 | G49: 0.025335
A50: ГРС "Р-ц Камешкир"(ГРС-47) | B50: ГРС "Р-ц Камешкир"(ГРС-47) | C50: ООО "Надежда" | D50: 6 | E50: 0.00099 | F50: 0.00054 | G50: 0.00045
A51: ГРС "Пионер"(ГРС-124) | B51: ГРС "Пионер"(ГРС-124) | C51: ОАО "Кузролик" | D51: 5 | E51: 0.01998 | F51: 0.005268 | G51: 0.014712
A52: ГРС "Кузнецк"(ГРС-96) | B52: ГРС "Кузнецк"(ГРС-96) | C52: АО "ДЭП №84" | D52: 5 | E52: 0.00501 | F52: 0.004706 | G52: 0.000304
A53: ГРС "Кузнецк"(ГРС-96) | B53: ГРС "Кузнецк"(ГРС-96) | C53: АО "ДЭП №84" | D53: 5 | E53: 0.02499 | F53: 0.036593 | G53: -0.011603
A54: ГРС "Анненково"(ГРС-98) | B54: ГРС "Анненково"(ГРС-98) | C54: ООО "Агат-Алко" | D54: 4 | E54: 0.80292 | F54: 0.795063 | G54: 0.007857
A55: ГРС с-з "Борец" | B55: ГРС с-з "Борец" | C55: Лопатинское РАЙПО | D55: 5 | E55: 0.01296 | F55: 0.002149 | G55: 0.010811
A56: ГРС "Кузнецк"(ГРС-96) | B56: ГРС "Кузнецк"(ГРС-96) | C56: ООО "Стройзаказ" | D56: 5 | E56: 0.03999 | F56: 0.026613 | G56: 0.013377
A57: ГРС "Р-ц Камешкир"(ГРС-47) | B57: ГРС "Р-ц Камешкир"(ГРС-47) | C57: ГАУ ПО "Редакция газеты "Новь" | D57: 6 | E57: 0.00189 | F57: 0.001255 | G57: 0.000635
A58: ГРС "Кузнецк"(ГРС-96) | B58: ГРС "Кузнецк"(ГРС-96) | C58: Мясоутова Нурия Алиевна | D58: 6 | E58: 0.00219 | F58: 2e-05 | G58: 0.00217
A59: ГРС "Кузнецк"(ГРС-96) | B59: ГРС "Кузнецк"(ГРС-96) | C59: Мясоутова Нурия Алиевна | D59: 6 | E59: 0.00102 | F59: 0.001059 | G59: -3.9e-05
A60: ГРС "Кузнецк"(ГРС-96) | B60: ГРС "Кузнецк"(ГРС-96) | C60: ИП Абрамов Сергей Николаевич | D60: 6 | E60: 0.0015 | F60: 0.00032 | G60: 0.00118
A61: ГРС с-з "Борец" | B61: ГРС с-з "Борец" | C61: ИП Ведина Светлана Александровна | D61: 7 | E61: 0.00039 | F61: 9.6e-05 | G61: 0.000294
A62: ГРС "Кузнецк"(ГРС-96) | B62: ГРС "Кузнецк"(ГРС-96) | C62: ИП Ястребов Михаил Валерьевич | D62: 6 | E62: 0.00699 | F62: 0.001987 | G62: 0.005003
A63: ГРС с-з "Даниловский" | B63: ГРС с-з "Даниловский" | C63: ИП Сидорова Надежда Юрьевна | D63: 7 | E63: 0.00012 | F63: 0.000103 | G63: 1.7e-05
A64: ГРС "Карновар"(ГРС-47) | B64: ГРС "Карновар"(ГРС-47) | C64: ООО "Караван" | D64: 6 | E64: 0.00249 | F64: 0.002 | G64: 0.00049
A65: ГРС "Кузнецк"(ГРС-96) | B65: ГРС "Кузнецк"(ГРС-96) | C65: ООО Леспромхоз "Кузнецкий" | D65: 7 | E65: 0.0006 | F65: 0.000505 | G65: 9.5e-05
A66: ГРС "Карновар"(ГРС-47) | B66: ГРС "Карновар"(ГРС-47) | C66: ИП Савцов Михаил Дмитриевич | D66: 6 | E66: 0.00456 | F66: 0.001537 | G66: 0.003023
A67: ГРС "Карновар"(ГРС-47) | B67: ГРС "Карновар"(ГРС-47) | C67: ИП Савцов Михаил Дмитриевич | D67: 6 | E67: 0.00096 | F67: 0.0003 | G67: 0.00066
A68: ГРС "Кузнецк"(ГРС-96) | B68: ГРС "Кузнецк"(ГРС-96) | C68: Барштейн Леонид Давидович | D68: 6 | E68: 0.00081 | F68: 0.000837 | G68: -2.7e-05
A69: ГРС "Кузнецк"(ГРС-96) | B69: ГРС "Кузнецк"(ГРС-96) | C69: ИП Юдин Юрий Николаевич | D69: 7 | E69: 0.00051 | F69: 0.000237 | G69: 0.000273
A70: ГРС "Карновар"(ГРС-47) | B70: ГРС "Карновар"(ГРС-47) | C70: Местная мусульманская религиозная организация "Махалля № 2461" с. Неверкино Неверкинского района Пензенской области Центрального духовного управления мусульман России | D70: 6 | E70: 0.00108 | F70: 0.001 | G70: 8e-05
A71: ГРС "Кузнецк"(ГРС-96) | B71: ГРС "Кузнецк"(ГРС-96) | C71: ООО "Металлоптторг" | D71: 6 | E71: 0.00255 | F71: 0.001455 | G71: 0.001095
A72: ГРС "Кузнецк"(ГРС-96) | B72: ГРС "Кузнецк"(ГРС-96) | C72: ООО "Металлоптторг" | D72: 6 | E72: 0.0015 | F72: 0.001361 | G72: 0.000139
A73: ГРС "Кузнецк"(ГРС-96) | B73: ГРС "Кузнецк"(ГРС-96) | C73: ООО "Металлоптторг" | D73: 6 | E73: 0.00099 | F73: 0.001261 | G73: -0.000271
A74: ГРС с-з "Борец" | B74: ГРС с-з "Борец" | C74: Абузярова Гольмизя Рифатьевна | D74: 7 | E74: 0.00015 | F74: 0.000124 | G74: 2.6e-05
A75: ГРС "Анненково"(ГРС-98) | B75: ГРС "Анненково"(ГРС-98) | C75: ИП Евдокимов Иван Осипович | D75: 7 | E75: 0.00051 | F75: 6.6e-05 | G75: 0.000444
A76: ГРС "Анненково"(ГРС-98) | B76: ГРС "Анненково"(ГРС-98) | C76: ИП Евдокимов Иван Осипович | D76: 7 | E76: 0.00036 | F76: 7.4e-05 | G76: 0.000286
A77: ГРС с-з "Борец" | B77: ГРС с-з "Борец" | C77: ИП Мухамеджанов Марат Джамилович | D77: 6 | E77: 0.0015 | F77: 0.0009 | G77: 0.0006
A78: ГРС "Кузнецк"(ГРС-96) | B78: ГРС "Кузнецк"(ГРС-96) | C78: Куренкова Инесса Владимировна | D78: 7 | E78: 0.00054 | F78: 9.1e-05 | G78: 0.000449
A79: ГРС "Кузнецк"(ГРС-96) | B79: ГРС "Кузнецк"(ГРС-96) | C79: ИП Торосян Саркис Степанович | D79: 6 | E79: 0.00498 | F79: 0.001142 | G79: 0.003838
A80: ГРС с-з "Борец" | B80: ГРС с-з "Борец" | C80: Зябирова Нина Ивановна | D80: 7 | E80: 0.00078 | F80: 0.000598 | G80: 0.000182
A81: ГРС "Кузнецк"(ГРС-96) | B81: ГРС "Кузнецк"(ГРС-96) | C81: МЕСТНАЯ МУСУЛЬМАНСКАЯ РЕЛИГИОЗНАЯ ОРГАНИЗАЦИЯ - МАХАЛЛЯ № 1901 С.ИНДЕРКА СОСНОВОБОРСКОГО РАЙОНА РЕГИОНАЛЬНОГО ДУХОВНОГО УПРАВЛЕНИЯ МУСУЛЬМАН ПЕНЗЕНСКОЙ ОБЛАСТИ ПРИ ЦДУМ РОССИИ | D81: 7 | E81: 0.00069 | F81: 0.00093 | G81: -0.00024
A82: ГРС "Кузнецк"(ГРС-96) | B82: ГРС "Кузнецк"(ГРС-96) | C82: ИП Биксалиев Мянсур Фатихович | D82: 6 | E82: 0.0015 | F82: 0.00085 | G82: 0.00065
A83: ГРС "Кузнецк"(ГРС-96) | B83: ГРС "Кузнецк"(ГРС-96) | C83: ИП Биксалиев Мянсур Фатихович | D83: 7 | E83: 0.00039 | F83: 0.00038 | G83: 1e-05
A84: ГРС "Кузнецк"(ГРС-96) | B84: ГРС "Кузнецк"(ГРС-96) | C84: ИП Биксалиев Мянсур Фатихович | D84: 7 | E84: 0.00015 | F84: 0.000315 | G84: -0.000165
A85: ГРС "Кузнецк"(ГРС-96) | B85: ГРС "Кузнецк"(ГРС-96) | C85: Корчажкина Ольга Васильевна | D85: 6 | E85: 0.00099 | F85: 0.0001 | G85: 0.00089
A86: ГРС "Кузнецк"(ГРС-96) | B86: ГРС "Кузнецк"(ГРС-96) | C86: ООО "Звезда" | D86: 6 | E86: 0.00099 | F86: 0.00096 | G86: 3e-05
A87: ГРС "Кузнецк"(ГРС-96) | B87: ГРС "Кузнецк"(ГРС-96) | C87: ООО "СВ" | D87: 6 | E87: 0.00249 | F87: 0.000255 | G87: 0.002235
A88: ГРС "Р-ц Камешкир"(ГРС-47) | B88: ГРС "Р-ц Камешкир"(ГРС-47) | C88: ИП Рузайкина Елена Федоровна | D88: 6 | E88: 0.00249 | F88: 0.001331 | G88: 0.001159
A89: ГРС "Р-ц Камешкир"(ГРС-47) | B89: ГРС "Р-ц Камешкир"(ГРС-47) | C89: ИП Рузайкина Елена Федоровна | D89: 6 | E89: 0.00099 | F89: 0.00059 | G89: 0.0004
A90: ГРС "Карновар"(ГРС-47) | B90: ГРС "Карновар"(ГРС-47) | C90: ПО "Неверкинское" | D90: 7 | E90: 0.00039 | F90: 0.000965 | G90: -0.000575
A91: ГРС "Карновар"(ГРС-47) | B91: ГРС "Карновар"(ГРС-47) | C91: ПО "Неверкинское" | D91: 7 | E91: 0.00039 | F91: 0.00118 | G91: =E91-F91 -> -0.00079
A92: ГРС "Карновар"(ГРС-47) | B92: ГРС "Карновар"(ГРС-47) | C92: Публичное акционерное общество "Сбербанк России" | D92: 6 | E92: 0.00138 | F92: 0.0012 | G92: 0.00018
A93: ГРС "Кузнецк"(ГРС-96) | B93: ГРС "Кузнецк"(ГРС-96) | C93: ИП Калмыков Иван Николаевич | D93: 6 | E93: 0.0012 | F93: 0.000928 | G93: 0.000272
A94: ГРС "Р-ц Камешкир"(ГРС-47) | B94: ГРС "Р-ц Камешкир"(ГРС-47) | C94: ИП Межонов Дмитрий Викторович | D94: 7 | E94: 0.00123 | F94: 0.0012 | G94: 3e-05
A95: ГРС "Кузнецк"(ГРС-96) | B95: ГРС "Кузнецк"(ГРС-96) | C95: ИП Фролочкин Александр Львович | D95: 7 | E95: 0.00081 | F95: 0.0004 | G95: 0.00041
A96: ГРС "Кузнецк"(ГРС-96) | B96: ГРС "Кузнецк"(ГРС-96) | C96: Кулахметова Нурия Харисовна | D96: 6 | E96: 0.00249 | F96: 0.00011 | G96: 0.00238
A97: ГРС "Р-ц Камешкир"(ГРС-47) | B97: ГРС "Р-ц Камешкир"(ГРС-47) | C97: ОАО "Ульяновскнефть" | D97: 4 | E97: 0.20001 | F97: 0.023 | G97: 0.17701
A98: ГРС "Кузнецк"(ГРС-96) | B98: ГРС "Кузнецк"(ГРС-96) | C98: ИП Костин Сергей Владимирович | D98: 6 | E98: 0.0018 | F98: 0.000879 | G98: 0.000921
A99: ГРС "Кузнецк"(ГРС-96) | B99: ГРС "Кузнецк"(ГРС-96) | C99: ИП Алмакаев Ринат Фатихович | D99: 6 | E99: 0.00207 | F99: 0.000163 | G99: 0.001907
A100: ГРС "Кузнецк"(ГРС-96) | B100: ГРС "Кузнецк"(ГРС-96) | C100: ИП Федотова Марина Александровна | D100: 6 | E100: 0.00099 | F100: 0.001331 | G100: -0.000341
A101: ГРС "Кузнецк"(ГРС-96) | B101: ГРС "Кузнецк"(ГРС-96) | C101: ООО "БС" | D101: 6 | E101: 0.00474 | F101: 0.000782 | G101: 0.003958
A102: ГРС "Кузнецк"(ГРС-96) | B102: ГРС "Кузнецк"(ГРС-96) | C102: Ветчининова Татьяна Ивановна | D102: 6 | E102: 0.00075 | F102: 0.000266 | G102: 0.000484
A103: ГРС "Кузнецк"(ГРС-96) | B103: ГРС "Кузнецк"(ГРС-96) | C103: Ветчининова Татьяна Ивановна | D103: 7 | E103: 0.00021 | F103: 0.000212 | G103: -2e-06
A104: ГРС "Кузнецк"(ГРС-96) | B104: ГРС "Кузнецк"(ГРС-96) | C104: ИП Шувалов Андрей Анатольевич | D104: 6 | E104: 0.00249 | F104: 0.002 | G104: 0.00049
A105: ГРС с-з "Борец" | B105: ГРС с-з "Борец" | C105: ООО "Козловское" | D105: 6 | E105: 0.0015 | F105: 0.001245 | G105: 0.000255
A106: ГРС "Кузнецк"(ГРС-96) | B106: ГРС "Кузнецк"(ГРС-96) | C106: АО "Тандер" | D106: 6 | E106: 0.00228 | F106: 0.001147 | G106: 0.001133
A107: ГРС "Кузнецк"(ГРС-96) | B107: ГРС "Кузнецк"(ГРС-96) | C107: АО "Тандер" | D107: 6 | E107: 0.00162 | F107: 0.001334 | G107: 0.000286
A108: ГРС с-з "Борец" | B108: ГРС с-з "Борец" | C108: ПАО "Ростелеком" | D108: 6 | E108: 0.00399 | F108: 0.001349 | G108: 0.002641
A109: ГРС "Кузнецк"(ГРС-96) | B109: ГРС "Кузнецк"(ГРС-96) | C109: ИП Сидоров Андрей Анатольевич | D109: 7 | E109: 0.00039 | F109: 0.0001 | G109: 0.00029
A110: ГРС "Кузнецк"(ГРС-96) | B110: ГРС "Кузнецк"(ГРС-96) | C110: ООО "Полипром Кузнецк" | D110: 6 | E110: 0.00426 | F110: 0.004 | G110: 0.00026
A111: ГРС "Кузнецк"(ГРС-96) | B111: ГРС "Кузнецк"(ГРС-96) | C111: ИП Пырков Виталий Викторович | D111: 6 | E111: 0.00198 | F111: 0.000743 | G111: 0.001237
A112: ГРС "Кузнецк"(ГРС-96) | B112: ГРС "Кузнецк"(ГРС-96) | C112: ИП Меньшов Сергей Иванович | D112: 6 | E112: 0.0015 | F112: 0.00032 | G112: 0.00118
A113: ГРС "Кузнецк"(ГРС-96) | B113: ГРС "Кузнецк"(ГРС-96) | C113: Кудрявцев Андрей Васильевич | D113: 6 | E113: 0.00177 | F113: 0.000642 | G113: 0.001128
A114: ГРС "Кузнецк"(ГРС-96) | B114: ГРС "Кузнецк"(ГРС-96) | C114: ИП Алавердян Юрик Жорикович | D114: 6 | E114: 0.00729 | F114: 0.001 | G114: 0.00629
A115: ГРС "Кузнецк"(ГРС-96) | B115: ГРС "Кузнецк"(ГРС-96) | C115: ИП Погодина Наталья Николаевна | D115: 7 | E115: 0.00021 | F115: 0.000664 | G115: -0.000454
A116: ГРС "Кузнецк"(ГРС-96) | B116: ГРС "Кузнецк"(ГРС-96) | C116: ИП Ковалёва Галина Николаевна | D116: 6 | E116: 0.00348 | F116: 0.000704 | G116: 0.002776
A117: ГРС "Кузнецк"(ГРС-96) | B117: ГРС "Кузнецк"(ГРС-96) | C117: ИП Гаврилов Дмитрий Николаевич | D117: 6 | E117: 0.00279 | F117: 0.001853 | G117: 0.000937
A118: ГРС "Карновар"(ГРС-47) | B118: ГРС "Карновар"(ГРС-47) | C118: Бикбаева Сягадят Зякериевна | D118: 6 | E118: 0.00219 | F118: 0.0008 | G118: 0.00139
A119: ГРС "Карновар"(ГРС-47) | B119: ГРС "Карновар"(ГРС-47) | C119: ИП Салюков Мунир Нясибович | D119: 7 | E119: 9e-05 | F119: 0.000338 | G119: -0.000248
A120: ГРС "Кузнецк"(ГРС-96) | B120: ГРС "Кузнецк"(ГРС-96) | C120: ООО "Звезда - плюс" | D120: 7 | E120: 0.00081 | F120: 9e-05 | G120: 0.00072
A121: ГРС "Кузнецк"(ГРС-96) | B121: ГРС "Кузнецк"(ГРС-96) | C121: ИП Ялова Светлана Нифантьевна | D121: 6 | E121: 0.00339 | F121: 0.001195 | G121: 0.002195
A122: ГРС "Р-ц Камешкир"(ГРС-47) | B122: ГРС "Р-ц Камешкир"(ГРС-47) | C122: ИП Зеленова Татьяна Владимировна | D122: 7 | E122: 0.0006 | F122: 0.000696 | G122: -9.6e-05
A123: ГРС "Кузнецк"(ГРС-96) | B123: ГРС "Кузнецк"(ГРС-96) | C123: ИП Асанова Айгуль Мухамет-Алиевна | D123: 6 | E123: 0.00099 | F123: 0.0003 | G123: 0.00069
A124: ГРС "Кузнецк"(ГРС-96) | B124: ГРС "Кузнецк"(ГРС-96) | C124: ИП Асанова Айгуль Мухамет-Алиевна | D124: 6 | E124: 0.00099 | F124: 0.0003 | G124: 0.00069
A125: ГРС "Кузнецк"(ГРС-96) | B125: ГРС "Кузнецк"(ГРС-96) | C125: ИП Кабанов Ильдар Фяритович | D125: 7 | E125: 0.00051 | F125: 0.000153 | G125: 0.000357
A126: ГРС "Кузнецк"(ГРС-96) | B126: ГРС "Кузнецк"(ГРС-96) | C126: ИП Храмов Марат Хамзиевич | D126: 6 | E126: 0.003 | F126: 0.000663 | G126: 0.002337
A127: ГРС "Кузнецк"(ГРС-96) | B127: ГРС "Кузнецк"(ГРС-96) | C127: Евдокимова Вера Михайловна | D127: 6 | E127: 0.0009 | F127: 0.001747 | G127: -0.000847
A128: ГРС с-з "Борец" | B128: ГРС с-з "Борец" | C128: Татаева Ольга Вячеславовна | D128: 7 | E128: 0.00021 | F128: 0.0002 | G128: 1e-05
A129: ГРС "Кузнецк"(ГРС-96) | B129: ГРС "Кузнецк"(ГРС-96) | C129: ИП Леднев Валерий Геннадьевич | D129: 6 | E129: 0.00129 | F129: 0.000702 | G129: 0.000588
A130: ГРС "Кузнецк"(ГРС-96) | B130: ГРС "Кузнецк"(ГРС-96) | C130: Кондрашина Любовь Ивановна | D130: 6 | E130: 0.00249 | F130: 0.00035 | G130: 0.00214
A131: ГРС "Кузнецк"(ГРС-96) | B131: ГРС "Кузнецк"(ГРС-96) | C131: Местная Мусульманская Религиозная организация "Махалля № 226 г.Кузнецк Пензенской Области Регионального Духовного Управления Мусульман Пензенской Области При Центральном Духовном Управлении Мусульман России" | D131: 6 | E131: 0.00249 | F131: 0.00196 | G131: 0.00053
A132: ГРС "Кузнецк"(ГРС-96) | B132: ГРС "Кузнецк"(ГРС-96) | C132: ИП Еналиев Наиль Зарифович | D132: 6 | E132: 0.00099 | F132: 0.0003 | G132: 0.00069
A133: ГРС "Кузнецк"(ГРС-96) | B133: ГРС "Кузнецк"(ГРС-96) | C133: ИП Абушахманов Наиль Якубович | D133: 6 | E133: 0.00198 | F133: 0.000407 | G133: 0.001573
A134: ГРС "Кузнецк"(ГРС-96) | B134: ГРС "Кузнецк"(ГРС-96) | C134: ИП Кожевников Павел Владимирович | D134: 6 | E134: 0.00159 | F134: 0.000432 | G134: 0.001158
A135: ГРС "Кузнецк"(ГРС-96) | B135: ГРС "Кузнецк"(ГРС-96) | C135: ИП Прытков Борис Владимирович | D135: 7 | E135: 0.00057 | F135: 0.00057 | G135: 0
A136: ГРС "Р-ц Камешкир"(ГРС-47) | B136: ГРС "Р-ц Камешкир"(ГРС-47) | C136: Баранов Алексей Анатольевич | D136: 7 | E136: 0.0006 | F136: 0.000132 | G136: 0.000468
A137: ГРС "Карновар"(ГРС-47) | B137: ГРС "Карновар"(ГРС-47) | C137: Мянзелин Наиль Сяитович | D137: 6 | E137: 0.00057 | F137: 0.001987 | G137: -0.001417
A138: ГРС "Кузнецк"(ГРС-96) | B138: ГРС "Кузнецк"(ГРС-96) | C138: Михайлян Эдуард Людвигович | D138: 6 | E138: 0.0015 | F138: 0.000984 | G138: 0.000516
A139: ГРС "Кузнецк"(ГРС-96) | B139: ГРС "Кузнецк"(ГРС-96) | C139: ИП Бадаев Ибрагим Мяжитович | D139: 6 | E139: 0.0015 | F139: 0.00085 | G139: 0.00065
A140: ГРС "Кузнецк"(ГРС-96) | B140: ГРС "Кузнецк"(ГРС-96) | C140: ИП Захаров Андрей Александрович | D140: 7 | E140: 0.00051 | F140: 0.00075 | G140: -0.00024
A141: ГРС "Карновар"(ГРС-47) | B141: ГРС "Карновар"(ГРС-47) | C141: Местная православная религиозная организация прихода Никольской Церкви с.Неверкино Пензенской области Пензенской Епархии Русской Православной Церкви | D141: 7 | E141: 0.00036 | F141: 0.00085 | G141: -0.00049
A142: ГРС "Кузнецк"(ГРС-96) | B142: ГРС "Кузнецк"(ГРС-96) | C142: ИП Остапенко Елена Валентиновна | D142: 6 | E142: 0.00699 | F142: 0.001236 | G142: 0.005754
A143: ГРС "Кузнецк"(ГРС-96) | B143: ГРС "Кузнецк"(ГРС-96) | C143: ИП Остапенко Елена Валентиновна | D143: 6 | E143: 0.00258 | F143: 0.000537 | G143: 0.002043
A144: ГРС "Кузнецк"(ГРС-96) | B144: ГРС "Кузнецк"(ГРС-96) | C144: ИП Остапенко Елена Валентиновна | D144: 6 | E144: 0.003 | F144: 0.001119 | G144: 0.001881
A145: ГРС "Кузнецк"(ГРС-96) | B145: ГРС "Кузнецк"(ГРС-96) | C145: ИП Остапенко Елена Валентиновна | D145: 6 | E145: 0.003 | F145: 0.001394 | G145: 0.001606
A146: ГРС с-з "Борец" | B146: ГРС с-з "Борец" | C146: ИП Кабанов Фуать Алиевич | D146: 7 | E146: 0.00069 | F146: 0.0008 | G146: -0.00011
A147: ГРС "Р-ц Камешкир"(ГРС-47) | B147: ГРС "Р-ц Камешкир"(ГРС-47) | C147: Гаврилятов Михаил Иванович | D147: 7 | E147: 0.00039 | F147: 0.00035 | G147: 4e-05
A148: ГРС "Кузнецк"(ГРС-96) | B148: ГРС "Кузнецк"(ГРС-96) | C148: ИП Абубекиров Хамзя Искяндярович | D148: 6 | E148: 0.00498 | F148: 0.001189 | G148: 0.003791
A149: ГРС "Кузнецк"(ГРС-96) | B149: ГРС "Кузнецк"(ГРС-96) | C149: ИП Абубекиров Хамзя Искяндярович | D149: 6 | E149: 0.00798 | F149: 0.000328 | G149: 0.007652
A150: ГРС "Кузнецк"(ГРС-96) | B150: ГРС "Кузнецк"(ГРС-96) | C150: ИП Абубекиров Хамзя Искяндярович | D150: 7 | E150: 0.00051 | F150: 0.000788 | G150: -0.000278
A151: ГРС "Кузнецк"(ГРС-96) | B151: ГРС "Кузнецк"(ГРС-96) | C151: ИП Абубекиров Хамзя Искяндярович | D151: 6 | E151: 0.00081 | F151: 0.000518 | G151: 0.000292
A152: ГРС "Кузнецк"(ГРС-96) | B152: ГРС "Кузнецк"(ГРС-96) | C152: ИП Абубекиров Хамзя Искяндярович | D152: 6 | E152: 0.006 | F152: 0.002811 | G152: 0.003189
A153: ГРС "Кузнецк"(ГРС-96) | B153: ГРС "Кузнецк"(ГРС-96) | C153: ИП Биксалиев Тагир Мянсурович | D153: 7 | E153: 0.00018 | F153: 0.000375 | G153: -0.000195
A154: ГРС "Кузнецк"(ГРС-96) | B154: ГРС "Кузнецк"(ГРС-96) | C154: Урунчикова Любовь Викторовна | D154: 7 | E154: 0.00021 | F154: 0.00018 | G154: 3e-05
A155: ГРС "Кузнецк"(ГРС-96) | B155: ГРС "Кузнецк"(ГРС-96) | C155: ИП Нарбеков Рашит Рифатьевич | D155: 6 | E155: 0.00198 | F155: 0.000927 | G155: =E155-F155 -> 0.001053
A156: ГРС "Кузнецк"(ГРС-96) | B156: ГРС "Кузнецк"(ГРС-96) | C156: ИП Нарбеков Рашит Рифатьевич | D156: 6 | E156: 0.00201 | F156: 0.001242 | G156: 0.000768
A157: ГРС "Кузнецк"(ГРС-96) | B157: ГРС "Кузнецк"(ГРС-96) | C157: ИП Гафуров Рустам Расимович | D157: 7 | E157: 0.00024 | F157: 0.000185 | G157: 5.5e-05
A158: ГРС с-з "Борец" | B158: ГРС с-з "Борец" | C158: ИП Асанов Руслан Джафярович | D158: 7 | E158: 0.00054 | F158: 8.8e-05 | G158: 0.000452
A159: ГРС с-з "Борец" | B159: ГРС с-з "Борец" | C159: ИП Асанов Руслан Джафярович | D159: 7 | E159: 0.00024 | F159: 0.000216 | G159: 2.4e-05
A160: ГРС "Кузнецк"(ГРС-96) | B160: ГРС "Кузнецк"(ГРС-96) | C160: ООО "РемТрансСервис" | D160: 5 | E160: 0.03999 | F160: 0.015006 | G160: 0.024984
A161: ГРС "Кузнецк"(ГРС-96) | B161: ГРС "Кузнецк"(ГРС-96) | C161: ИП Фомин Владимир Вячеславович | D161: 6 | E161: 0.00204 | F161: 0.00069 | G161: 0.00135
A162: ГРС "Алеево"(ГРС-107) | B162: ГРС "Алеево"(ГРС-107) | C162: Местная мусульманская религиозная организация "Махалля №2218" с.Бикмосеевка Неверкинского района Пензенской области Регионального духовного управления мусульман Пензенской области при Центральном духовном управлении мусульман России | D162: 6 | E162: 0.0015 | F162: 0.00045 | G162: 0.00105
A163: ГРС "Кузнецк"(ГРС-96) | B163: ГРС "Кузнецк"(ГРС-96) | C163: Кураева Ираида Анатольевна | D163: 6 | E163: 0.00099 | F163: 0.000297 | G163: 0.000693
A164: ГРС "Кузнецк"(ГРС-96) | B164: ГРС "Кузнецк"(ГРС-96) | C164: Местная православная религиозная организация Прихода Вознесенского кафедрального собора г.Кузнецка Пензенской области Кузнецкой Епархии Русской Православной Церкви (Московский Патриархат) | D164: 6 | E164: 0.0012 | F164: 0.0003 | G164: 0.0009
A165: ГРС "Пионер"(ГРС-124) | B165: ГРС "Пионер"(ГРС-124) | C165: АО "Васильевская птицефабрика" | D165: 4 | E165: 0.45999 | F165: 0.21 | G165: 0.24999
A166: ГРС "Кузнецк"(ГРС-96) | B166: ГРС "Кузнецк"(ГРС-96) | C166: ООО "Скобянка" | D166: 6 | E166: 0.00198 | F166: 0.000629 | G166: 0.001351
A167: ГРС "Кузнецк"(ГРС-96) | B167: ГРС "Кузнецк"(ГРС-96) | C167: ООО "Скобянка" | D167: 6 | E167: 0.00249 | F167: 0.000649 | G167: 0.001841
A168: ГРС "Кузнецк"(ГРС-96) | B168: ГРС "Кузнецк"(ГРС-96) | C168: ООО "Скобянка" | D168: 6 | E168: 0.00498 | F168: 0.001699 | G168: 0.003281
A169: ГРС "Кузнецк"(ГРС-96) | B169: ГРС "Кузнецк"(ГРС-96) | C169: ИП Голышев Владимир Васильевич | D169: 7 | E169: 0.0006 | F169: 0.0001 | G169: 0.0005
A170: ГРС "Анненково"(ГРС-98) | B170: ГРС "Анненково"(ГРС-98) | C170: ИП Борисова Лилия Геннадьевна | D170: 6 | E170: 0.00099 | F170: 0.000575 | G170: 0.000415
A171: ГРС "Кузнецк"(ГРС-96) | B171: ГРС "Кузнецк"(ГРС-96) | C171: АО "Тандер" | D171: 6 | E171: 0.00099 | F171: 0.002631 | G171: -0.001641
A172: ГРС "Кузнецк"(ГРС-96) | B172: ГРС "Кузнецк"(ГРС-96) | C172: ИП Сулейманова Флюра Аллямовна | D172: 6 | E172: 0.003 | F172: 0.001702 | G172: 0.001298
A173: ГРС "Кузнецк"(ГРС-96) | B173: ГРС "Кузнецк"(ГРС-96) | C173: ИП Майоров Сергей Владимирович | D173: 7 | E173: 0.00039 | F173: 0.0006 | G173: -0.00021
A174: ГРС "Кузнецк"(ГРС-96) | B174: ГРС "Кузнецк"(ГРС-96) | C174: ИП Тарасов Владимир Николаевич | D174: 6 | E174: 0.006 | F174: 0.001259 | G174: 0.004741
A175: ГРС "Кузнецк"(ГРС-96) | B175: ГРС "Кузнецк"(ГРС-96) | C175: ИП Тарасов Владимир Николаевич | D175: 6 | E175: 0.00099 | F175: 0.001118 | G175: -0.000128
A176: ГРС "Кузнецк"(ГРС-96) | B176: ГРС "Кузнецк"(ГРС-96) | C176: ИП Тугушева Рамзия Хамзиевна | D176: 6 | E176: 0.00102 | F176: 0.000253 | G176: 0.000767
A177: ГРС "Пионер"(ГРС-124) | B177: ГРС "Пионер"(ГРС-124) | C177: ИП Ижбулатов Камиль Зиевич | D177: 6 | E177: 0.0012 | F177: 0.000223 | G177: 0.000977
A178: ГРС "Кузнецк"(ГРС-96) | B178: ГРС "Кузнецк"(ГРС-96) | C178: ИП Мязитова Зифа Джавдятовна | D178: 6 | E178: 0.0075 | F178: 0.004607 | G178: 0.002893
A179: ГРС "Кузнецк"(ГРС-96) | B179: ГРС "Кузнецк"(ГРС-96) | C179: Местная мусульманская религиозная организация махалля №1903 г. Кузнецк Пензенской области Регионального Духовного управления мусульман Пензенской области при ЦДУМ России | D179: 6 | E179: 0.0015 | F179: 0.00017 | G179: 0.00133
A180: ГРС "Верхозим"(ГРС-53) | B180: ГРС "Верхозим"(ГРС-53) | C180: Митрофанова Ольга Николаевна | D180: 6 | E180: 0.0012 | F180: 0.000346 | G180: 0.000854
A181: ГРС "Кузнецк"(ГРС-96) | B181: ГРС "Кузнецк"(ГРС-96) | C181: ООО "Скобянка" | D181: 6 | E181: 0.0063 | F181: 0.002455 | G181: 0.003845
A182: ГРС "Кузнецк"(ГРС-96) | B182: ГРС "Кузнецк"(ГРС-96) | C182: ИП Ануфриева Татьяна Евгеньевна | D182: 6 | E182: 0.00399 | F182: 0.001072 | G182: 0.002918
A183: ГРС "Кузнецк"(ГРС-96) | B183: ГРС "Кузнецк"(ГРС-96) | C183: ООО "АКБ" | D183: 6 | E183: 0.00219 | F183: 0.000279 | G183: 0.001911
A184: ГРС "Кузнецк"(ГРС-96) | B184: ГРС "Кузнецк"(ГРС-96) | C184: ООО "АКБ" | D184: 7 | E184: 0.00015 | F184: 0.00047 | G184: -0.00032
A185: ГРС "Карновар"(ГРС-47) | B185: ГРС "Карновар"(ГРС-47) | C185: ИП Савцов Михаил Дмитриевич | D185: 6 | E185: 0.00198 | F185: 0.001668 | G185: 0.000312
A186: ГРС "Карновар"(ГРС-47) | B186: ГРС "Карновар"(ГРС-47) | C186: ИП Савцов Михаил Дмитриевич | D186: 7 | E186: 0.00033 | F186: 0.000365 | G186: -3.5e-05
A187: ГРС "Кузнецк"(ГРС-96) | B187: ГРС "Кузнецк"(ГРС-96) | C187: ИП Копрянцева Антонина Николаевна | D187: 7 | E187: 0.00048 | F187: 0.0005 | G187: -2e-05
A188: ГРС "Анненково"(ГРС-98) | B188: ГРС "Анненково"(ГРС-98) | C188: ИП Борисова Лилия Геннадьевна | D188: 6 | E188: 0.00198 | F188: 0.002813 | G188: -0.000833
A189: ГРС "Кузнецк"(ГРС-96) | B189: ГРС "Кузнецк"(ГРС-96) | C189: Власова Ольга Николаевна | D189: 6 | E189: 0.0015 | F189: 0.000301 | G189: 0.001199
A190: ГРС с-з "Даниловский" | B190: ГРС с-з "Даниловский" | C190: ИП Гущина Галина Владимировна | D190: 7 | E190: 0.00024 | F190: 0.000178 | G190: 6.2e-05
A191: ГРС "Кузнецк"(ГРС-96) | B191: ГРС "Кузнецк"(ГРС-96) | C191: ИП Фомин Владимир Вячеславович | D191: 6 | E191: 0.0033 | F191: 0.00143 | G191: 0.00187
A192: ГРС "Кузнецк"(ГРС-96) | B192: ГРС "Кузнецк"(ГРС-96) | C192: ИП Фомин Владимир Вячеславович | D192: 6 | E192: 0.0042 | F192: 0.003042 | G192: 0.001158
A193: ГРС "Кузнецк"(ГРС-96) | B193: ГРС "Кузнецк"(ГРС-96) | C193: Голубев Владимир Юрьевич | D193: 6 | E193: 0.00099 | F193: 0.00046 | G193: 0.00053
A194: ГРС "Кузнецк"(ГРС-96) | B194: ГРС "Кузнецк"(ГРС-96) | C194: ИП Куницына Ольга Викторовна | D194: 7 | E194: 0.00024 | F194: 8.5e-05 | G194: 0.000155
A195: ГРС "Кузнецк"(ГРС-96) | B195: ГРС "Кузнецк"(ГРС-96) | C195: ИП Ижбулатов Камиль Зиевич | D195: 6 | E195: 0.003 | F195: 0.000703 | G195: 0.002297
A196: ГРС "Кузнецк"(ГРС-96) | B196: ГРС "Кузнецк"(ГРС-96) | C196: ИП Шукшин Равиль Харисович | D196: 6 | E196: 0.00099 | F196: 0.000119 | G196: 0.000871
A197: ГРС "Кузнецк"(ГРС-96) | B197: ГРС "Кузнецк"(ГРС-96) | C197: ИП Кярюшев Марат Усманович | D197: 6 | E197: 0.00348 | F197: 0.0002 | G197: 0.00328
A198: ГРС "Верхозим"(ГРС-53) | B198: ГРС "Верхозим"(ГРС-53) | C198: ИП Еналиев Камиль Зарифович | D198: 6 | E198: 0.00099 | F198: 0.00019 | G198: 0.0008
A199: ГРС "Кузнецк"(ГРС-96) | B199: ГРС "Кузнецк"(ГРС-96) | C199: ИП Орехов Сергей Александрович | D199: 6 | E199: 0.0015 | F199: 0.0005 | G199: 0.001
A200: ГРС "Р-ц Камешкир"(ГРС-47) | B200: ГРС "Р-ц Камешкир"(ГРС-47) | C200: Тюина Ольга Николаевна | D200: 7 | E200: 0.0003 | F200: 0.0003 | G200: 0
A201: ГРС "Кузнецк"(ГРС-96) | B201: ГРС "Кузнецк"(ГРС-96) | C201: Обмолов Вячеслав Олегович | D201: 7 | E201: 0.00039 | F201: 0.00019 | G201: 0.0002
A202: ГРС "Кузнецк"(ГРС-96) | B202: ГРС "Кузнецк"(ГРС-96) | C202: ООО ТК "Дилижанс-2" | D202: 6 | E202: 0.00387 | F202: 0.005011 | G202: -0.001141
... 904 more rows
